bitfinex/quotes_BTCUSD_20250221
["timestamp","ask_amount","ask_price","bid_price","bid_amount"]
[1740112547008,0.0008508,98251.0,98250.0,0.3072673]
[1740112547416,0.0008508,98251.0,98250.0,1.8072673]
[1740112550617,0.0008508,98251.0,98250.0,0.3000673]
[1740112550821,0.0008508,98251.0,98250.0,0.3072673]
[1740112557709,0.0008508,98251.0,98250.0,1.8072673]
[1740112564042,0.0008508,98251.0,98250.0,0.3072673]
[1740112564620,0.0008508,98251.0,98250.0,1.8072673]
[1740112567596,0.0008508,98251.0,98250.0,0.3072673]
[1740112568152,0.0008508,98251.0,98250.0,1.8072673]
[1740112571110,0.0008508,98251.0,98250.0,0.3072673]
[1740112571627,0.0008508,98251.0,98250.0,1.8072673]
[1740112574238,0.0008508,98251.0,98250.0,0.3072673]
[1740112578139,0.0008508,98251.0,98250.0,1.8072673]
[1740112581492,0.0008508,98251.0,98250.0,0.3072673]
[1740112581806,0.0008508,98251.0,98250.0,1.8072673]
[1740112584030,0.0008508,98251.0,98250.0,7.14422476]
[1740112584241,0.0008508,98251.0,98250.0,7.34422476]
[1740112584851,0.0008508,98251.0,98250.0,7.33722476]
[1740112585269,0.0008508,98251.0,98250.0,7.34422476]
[1740112585442,0.0008508,98251.0,98250.0,8.04422476]
[1740112586054,0.0008508,98251.0,98250.0,8.03822476]
[1740112586253,0.0008508,98251.0,98250.0,8.04522476]
[1740112590880,0.0008508,98251.0,98250.0,8.05976561]
[1740112603605,0.0008508,98251.0,98250.0,8.04576561]
[1740112603836,0.0008508,98251.0,98250.0,8.05276561]
[1740112604950,8e-07,98251.0,98250.0,8.05276561]
[1740112605169,8e-07,98251.0,98250.0,2.99576561]
[1740112605657,8e-07,98251.0,98250.0,3.00276561]
[1740112606099,8e-07,98251.0,98250.0,3.00976561]
[1740112606823,0.0008116,98254.0,98253.0,0.31720785]
[1740112607053,0.0008508,98267.0,98266.0,0.302646]
[1740112607270,0.0008508,98267.0,98266.0,7.55098484]
[1740112607515,0.0008508,98267.0,98266.0,9.15280954]
[1740112607752,8e-07,98267.0,98266.0,9.22850954]
[1740112608003,8e-07,98267.0,98266.0,4.17850954]
[1740112608235,8e-07,98267.0,98266.0,4.87850954]
[1740112608972,8e-07,98267.0,98266.0,4.88550954]
[1740112609174,8e-07,98267.0,98266.0,4.87850954]
[1740112609624,8e-07,98267.0,98266.0,4.89250954]
[1740112611177,8e-07,98267.0,98266.0,4.89658354]
[1740112612517,8e-07,98267.0,98266.0,4.91646986]
[1740112625239,0.0008116,98275.0,98274.0,0.2]
[1740112625476,0.0008116,98275.0,98274.0,6.48447115]
[1740112625920,0.0008116,98275.0,98274.0,7.98447115]
[1740112626321,0.0008116,98275.0,98274.0,7.99147115]
[1740112626518,0.0008116,98275.0,98274.0,7.99847115]
[1740112627793,0.0008116,98275.0,98274.0,7.99147115]
[1740112628431,0.0008116,98275.0,98274.0,7.99847115]
[1740112632288,0.0008116,98275.0,98274.0,8.01916387]
[1740112632815,0.0008116,98275.0,98274.0,2.96916387]
[1740112632937,0.0008116,98275.0,98274.0,8.01916387]
[1740112636635,0.0009861,98286.0,98285.0,0.152617]
[1740112636840,0.0009861,98286.0,98285.0,3.14542759]
[1740112637085,0.22353256,98295.0,98294.0,0.152603]
[1740112637254,0.22353256,98295.0,98294.0,0.2869993]
[1740112637842,0.22396559,98295.0,98294.0,0.2869993]
[1740112638543,0.22396559,98295.0,98294.0,0.2939993]
[1740112639506,0.00043303,98295.0,98294.0,5.3509993]
[1740112639939,0.00043303,98295.0,98294.0,6.8509993]
[1740112640593,0.00043303,98295.0,98294.0,6.8439993]
[1740112640999,0.00043303,98295.0,98294.0,7.5509993]
[1740112641656,0.00043303,98295.0,98294.0,7.5439993]
[1740112642199,0.00043303,98295.0,98294.0,7.5509993]
[1740112642411,0.00043303,98295.0,98294.0,7.57167956]
[1740112643610,0.00043303,98295.0,98294.0,2.52167956]
[1740112643778,0.00043303,98295.0,98294.0,7.57167956]
[1740112644147,0.00043303,98295.0,98294.0,7.57499753]
[1740112644379,0.00043303,98295.0,98294.0,7.58199753]
[1740112644624,0.00043303,98295.0,98294.0,7.57499753]
[1740112644871,0.00128363,98295.0,98294.0,7.58199753]
[1740112645353,0.00128363,98295.0,98294.0,7.58919753]
[1740112650458,0.00128363,98295.0,98294.0,7.68032429]
[1740112652586,0.0457,98308.0,98297.0,0.2]
[1740112652793,0.0457,98308.0,98307.0,0.152583]
[1740112652969,0.0457,98308.0,98307.0,1.31175451]
[1740112654444,0.0457,98308.0,98307.0,1.31775451]
[1740112654692,0.0457,98308.0,98307.0,1.32475451]
[1740112657504,0.0465504,98308.0,98307.0,1.32475451]
[1740112661593,0.0465504,98308.0,98307.0,1.3446028]
[1740112664159,0.0008504,98308.0,98307.0,1.3446028]
[1740112665038,0.0008504,98308.0,98307.0,1.3386028]
[1740112665704,0.0008504,98308.0,98307.0,1.3316028]
[1740112665902,0.0008504,98308.0,98307.0,1.3446028]
[1740112666892,0.0008504,98308.0,98307.0,2.36922928]
[1740112667034,0.0008504,98308.0,98307.0,2.36222928]
[1740112667237,0.0008504,98308.0,98307.0,3.86322928]
[1740112667638,0.0008504,98308.0,98307.0,3.87022928]
[1740112668311,0.0008504,98308.0,98307.0,3.87722928]
[1740112668603,0.0008504,98308.0,98307.0,3.86322928]
[1740112669031,0.0008504,98308.0,98307.0,4.57022928]
[1740112669679,0.0008504,98308.0,98307.0,4.57722928]
[1740112670600,0.0008504,98308.0,98307.0,4.56322928]
[1740112671012,0.0008504,98308.0,98307.0,4.57022928]
[1740112671572,0.0008504,98308.0,98307.0,3.161482]
[1740112673198,0.0008504,98308.0,98307.0,3.2632743]
[1740112673779,0.0008504,98308.0,98307.0,4.7632743]
[1740112674365,0.0008504,98308.0,98307.0,4.9132743]
[1740112681071,0.0008504,98308.0,98307.0,4.82202158]
[1740112681767,0.0008504,98308.0,98307.0,4.67202158]
[1740112683531,0.0008504,98308.0,98307.0,2.62261989]
[1740112684879,0.0008504,98308.0,98307.0,1.12981989]
[1740112685736,0.0008504,98308.0,98307.0,1.12261989]
[1740112685895,0.0008504,98308.0,98307.0,1.12981989]
[1740112686496,0.0008504,98308.0,98307.0,0.42981989]
[1740112693305,0.0008504,98308.0,98307.0,0.12384569]
[1740112693661,0.37696396,98308.0,98307.0,0.11664569]
[1740112693860,0.22438296,98308.0,98307.0,0.12384569]
[1740112694262,0.22438296,98308.0,98307.0,0.11664569]
[1740112694710,0.22438296,98308.0,98307.0,0.10264569]
[1740112695125,0.22438296,98308.0,98307.0,0.10964569]
[1740112696520,0.22438296,98308.0,98307.0,0.10564569]
[1740112696727,0.22438296,98308.0,98307.0,0.26322869]
[1740112697407,0.22438296,98308.0,98307.0,0.11464569]
[1740112697788,0.22438296,98308.0,98307.0,0.26722869]
[1740112702362,0.22438296,98308.0,98307.0,0.11464569]
[1740112702575,0.22438296,98308.0,98307.0,0.26722869]
[1740112703556,0.22438296,98308.0,98307.0,0.26222869]
[1740112703968,0.22438296,98308.0,98307.0,0.26722869]
[1740112704422,0.22438296,98308.0,98307.0,0.26022869]
[1740112704784,0.22438296,98308.0,98307.0,0.26422869]
[1740112705997,0.22438296,98308.0,98307.0,0.25922869]
[1740112706381,0.22438296,98308.0,98307.0,0.26422869]
[1740112707354,0.22438296,98308.0,98307.0,0.26022869]
[1740112707554,0.22438296,98308.0,98307.0,0.26422869]
[1740112722410,0.22438296,98308.0,98307.0,0.28326035]
[1740112725971,0.22438296,98308.0,98307.0,0.39757938]
[1740112726961,0.22438296,98308.0,98307.0,0.39357938]
[1740112727141,0.22438296,98308.0,98307.0,0.39957938]
[1740112727342,0.22438296,98308.0,98307.0,5.44957938]
[1740112727573,0.22438296,98308.0,98307.0,2.37254772]
[1740112727771,0.22438296,98308.0,98307.0,1.07134772]
[1740112728198,0.22438296,98308.0,98307.0,0.97794772]
[1740112728390,0.22438296,98308.0,98307.0,1.67794772]
[1740112728728,0.22438296,98308.0,98307.0,1.67394772]
[1740112729230,0.0008504,98308.0,98307.0,1.68094772]
[1740112730618,0.0008504,98308.0,98307.0,1.69996799]
[1740112732406,0.0008504,98308.0,98307.0,0.99996799]
[1740112734019,0.0008504,98308.0,98307.0,1.00716799]
[1740112735134,0.0008504,98308.0,98307.0,0.40876799]
[1740112735348,0.0008504,98308.0,98307.0,1.10876799]
[1740112735684,0.0008504,98308.0,98307.0,7.65876799]
[1740112736652,0.0008504,98308.0,98307.0,7.77509924]
[1740112738011,0.0008504,98308.0,98307.0,7.97509924]
[1740112739724,0.0008504,98308.0,98307.0,7.96809924]
[1740112739965,0.0008504,98308.0,98307.0,7.96909924]
[1740112740143,0.0008504,98308.0,98307.0,7.97509924]
[1740112740476,0.0008504,98308.0,98307.0,7.96809924]
[1740112740970,0.0008504,98308.0,98307.0,7.98209924]
[1740112741578,0.0008504,98308.0,98307.0,7.96209924]
[1740112741940,0.0008504,98308.0,98307.0,7.96909924]
[1740112742721,0.0008504,98308.0,98307.0,7.97609924]
[1740112743253,0.0008504,98308.0,98307.0,7.96909924]
[1740112743409,0.0008504,98308.0,98307.0,7.97609924]
[1740112745947,0.0008504,98308.0,98307.0,7.96909924]
[1740112746145,0.0008504,98308.0,98307.0,7.97609924]
[1740112746454,0.0008504,98308.0,98307.0,7.96909924]
[1740112746860,0.0008504,98308.0,98307.0,7.97609924]
[1740112747515,0.0008504,98308.0,98307.0,7.96909924]
[1740112747722,0.0008504,98308.0,98307.0,7.96209924]
[1740112747936,0.0008504,98308.0,98307.0,7.96909924]
[1740112749282,0.0008504,98308.0,98307.0,7.97609924]
[1740112753142,0.0008504,98308.0,98307.0,2.92609924]
[1740112753345,0.0008504,98308.0,98307.0,7.97609924]
[1740112756198,0.0008504,98308.0,98307.0,8.12609924]
[1740112757068,0.0008504,98308.0,98307.0,8.11909924]
[1740112757238,0.0008504,98308.0,98307.0,8.11209924]
[1740112757445,0.0008504,98308.0,98307.0,8.11909924]
[1740112757650,0.0008504,98308.0,98307.0,8.12609924]
[1740112759486,0.0008509,98320.0,98319.0,0.152564]
[1740112759674,0.0008509,98320.0,98319.0,3.03633041]
[1740112760368,0.0008509,98320.0,98319.0,4.53633041]
[1740112760575,0.0008509,98320.0,98319.0,4.55535068]
[1740112761187,0.0008509,98320.0,98319.0,4.56235068]
[1740112761396,0.0008509,98320.0,98319.0,3.06235068]
[1740112762195,0.0008509,98320.0,98319.0,3.06935068]
[1740112765498,0.0008509,98320.0,98319.0,3.07706123]
[1740112765693,0.0008509,98320.0,98319.0,3.15766123]
[1740112766144,0.0008509,98320.0,98319.0,3.17781564]
[1740112766321,0.0008509,98320.0,98319.0,3.29413329]
[1740112768193,0.0008509,98320.0,98319.0,4.79413329]
[1740112769905,8e-07,98321.0,98320.0,0.39820385]
[1740112770098,3.63718981,98330.0,98329.0,0.59818985]
[1740112770403,3.63718981,98330.0,98329.0,2.88371796]
[1740112771014,3.63718981,98330.0,98329.0,3.58371796]
[1740112771328,3.63718981,98330.0,98329.0,3.60973823]
[1740112771661,3.63718981,98330.0,98329.0,3.60273823]
[1740112772519,3.63718981,98330.0,98329.0,3.60973823]
[1740112773074,3.63718981,98330.0,98329.0,3.61673823]
[1740112773744,3.63718981,98330.0,98329.0,3.62373823]
[1740112775698,3.63718981,98330.0,98329.0,8.69366136]
[1740112776155,3.63804041,98330.0,98329.0,8.69366136]
[1740112778424,3.63804041,98330.0,98329.0,10.19366136]
[1740112781171,3.63804041,98330.0,98329.0,9.49366136]
[1740112783466,3.63804041,98330.0,98329.0,9.47966136]
[1740112783674,3.63804041,98330.0,98329.0,9.48666136]
[1740112784392,3.63804041,98330.0,98329.0,10.18666136]
[1740112784527,3.63804041,98330.0,98329.0,10.17966136]
[1740112784733,1.7279013,98330.0,98329.0,10.21704233]
[1740112784948,1.7279013,98330.0,98329.0,10.22404233]
[1740112785137,1.7279013,98330.0,98329.0,5.17404233]
[1740112785336,1.7279013,98330.0,98329.0,10.21704233]
[1740112785773,1.7279013,98330.0,98329.0,10.21804233]
[1740112786075,1.7279013,98330.0,98329.0,10.21104233]
[1740112786288,1.7279013,98330.0,98329.0,10.21004233]
[1740112786585,1.7279013,98330.0,98329.0,10.21104233]
[1740112787121,1.7279013,98330.0,98329.0,10.21204233]
[1740112789212,1.7279013,98330.0,98329.0,10.71204233]
[1740112792122,1.7279013,98330.0,98329.0,10.69204233]
[1740112792323,1.7279013,98330.0,98329.0,10.69924233]
[1740112792550,1.7279013,98330.0,98329.0,9.95214233]
[1740112793108,1.7279013,98330.0,98329.0,9.87074233]
[1740112795221,1.7279013,98330.0,98329.0,9.90234756]
[1740112795627,1.7279013,98330.0,98329.0,5.68084756]
[1740112795830,1.7279013,98330.0,98329.0,10.25074756]
[1740112796026,1.7279013,98330.0,98329.0,10.12054756]
[1740112796800,1.7279013,98330.0,98329.0,9.39714756]
[1740112797012,1.7279013,98330.0,98329.0,7.25004233]
[1740112797409,1.7279013,98330.0,98329.0,6.10454233]
[1740112797642,1.7279013,98330.0,98329.0,6.11174233]
[1740112800642,1.7279013,98330.0,98329.0,4.06404184]
[1740112801282,1.7279013,98330.0,98329.0,4.09569206]
[1740112802048,1.7279013,98330.0,98329.0,3.34324306]
[1740112802256,1.7279013,98330.0,98329.0,3.30425199]
[1740112802478,1.7279013,98330.0,98329.0,3.45680099]
[1740112802879,1.7279013,98330.0,98329.0,3.30425199]
[1740112803321,1.7279013,98330.0,98329.0,3.45580099]
[1740112803722,1.7279013,98330.0,98329.0,3.46280099]
[1740112803936,1.7279013,98330.0,98329.0,3.45580099]
[1740112804250,1.7279013,98330.0,98329.0,3.46180099]
[1740112804468,1.7289013,98330.0,98329.0,3.46880099]
[1740112804856,1.7279013,98330.0,98329.0,3.46180099]
[1740112805254,1.7289013,98330.0,98329.0,2.96880099]
[1740112810376,1.7289013,98330.0,98329.0,1.46880099]
[1740112810797,1.7289013,98330.0,98329.0,2.96880099]
[1740112815781,1.7289013,98330.0,98329.0,8.11524184]
[1740112815984,1.7289013,98330.0,98329.0,8.14687804]
[1740112816186,1.7289013,98330.0,98329.0,8.17741604]
[1740112821428,1.7289013,98330.0,98329.0,8.26839416]
[1740112821833,1.7279013,98330.0,98329.0,8.26139416]
[1740112822222,1.7339013,98330.0,98329.0,8.26239416]
[1740112823337,1.7339013,98330.0,98329.0,8.25539416]
[1740112823784,1.7389013,98330.0,98329.0,8.25639416]
[1740112824963,1.7389013,98330.0,98329.0,8.16541604]
[1740112827439,1.7389013,98330.0,98329.0,8.66541604]
[1740112829862,1.7389013,98330.0,98329.0,7.96541604]
[1740112832221,1.7389013,98330.0,98329.0,8.19373604]
[1740112832706,1.7389013,98330.0,98329.0,8.89373604]
[1740112835482,1.7389013,98330.0,98329.0,3.84373604]
[1740112835684,1.7389013,98330.0,98329.0,8.89373604]
[1740112845740,1.7389013,98330.0,98329.0,8.88653604]
[1740112845945,1.7389013,98330.0,98329.0,8.89373604]
[1740112850841,0.6186521,98330.0,98329.0,8.89373604]
[1740112851045,1e-07,98330.0,98329.0,8.88209984]
[1740112851254,1e-07,98330.0,98329.0,3.83209984]
[1740112851859,1e-07,98330.0,98329.0,3.86379834]
[1740112853522,9.701e-05,98330.0,98329.0,3.86379834]
[1740112854447,9.701e-05,98330.0,98329.0,3.84477807]
[1740112854590,9.701e-05,98330.0,98329.0,8.41087807]
[1740112854785,9.701e-05,98330.0,98329.0,8.16927807]
[1740112855618,9.701e-05,98330.0,98329.0,8.13757957]
[1740112855818,4.70673861,98331.0,98330.0,0.18454085]
[1740112856018,4.70673861,98331.0,98330.0,7.89003074]
[1740112856219,4.70673861,98331.0,98330.0,7.65013074]
[1740112856632,4.70673861,98331.0,98330.0,7.12793074]
[1740112857061,4.70673861,98331.0,98330.0,8.62893074]
[1740112857270,4.70773861,98331.0,98330.0,8.05003074]
[1740112857478,4.70773861,98331.0,98330.0,8.01833523]
[1740112858762,4.70773861,98331.0,98330.0,8.01733523]
[1740112858984,4.70773861,98331.0,98330.0,8.01833523]
[1740112859213,4.70673861,98331.0,98330.0,8.01733523]
[1740112859410,4.70673861,98331.0,98330.0,8.01633523]
[1740112859641,4.70858921,98331.0,98330.0,8.01733523]
[1740112859846,4.70858921,98331.0,98330.0,8.51833523]
[1740112860224,4.70958921,98331.0,98330.0,8.51833523]
[1740112860398,4.70858921,98331.0,98330.0,8.51733523]
[1740112860571,4.70858921,98331.0,98330.0,8.51833523]
[1740112860972,4.70858921,98331.0,98330.0,8.55003375]
[1740112861306,4.70958921,98331.0,98330.0,8.55103375]
[1740112861974,4.70958921,98331.0,98330.0,8.55003375]
[1740112862154,4.70958921,98331.0,98330.0,8.55103375]
[1740112862505,4.70758921,98331.0,98330.0,8.54903375]
[1740112862711,4.70858921,98331.0,98330.0,8.55003375]
[1740112862945,4.7040493,98331.0,98330.0,8.55003375]
[1740112863149,4.7030493,98331.0,98330.0,8.54903375]
[1740112863378,4.7040493,98331.0,98330.0,8.55003375]
[1740112863552,4.7040493,98331.0,98330.0,8.5706398]
[1740112871756,4.7040493,98331.0,98330.0,8.572341]
[1740112872623,4.7040493,98331.0,98330.0,8.46241349]
[1740112873725,4.7040493,98331.0,98330.0,5.075141]
[1740112873939,4.7040493,98331.0,98330.0,10.125141]
[1740112875474,4.7040493,98331.0,98330.0,10.503421]
[1740112886101,4.7040493,98331.0,98330.0,8.45401931]
[1740112887427,4.7040493,98331.0,98330.0,3.61621931]
[1740112887589,4.7040493,98331.0,98330.0,3.62341931]
[1740112889550,4.7040493,98331.0,98330.0,3.07341931]
[1740112892407,4.7040493,98331.0,98330.0,3.77341931]
[1740112896426,4.7040493,98331.0,98330.0,3.41121931]
[1740112896635,4.7040493,98331.0,98330.0,8.46121931]
[1740112903415,4.7040493,98331.0,98330.0,8.45401931]
[1740112903601,4.7040493,98331.0,98330.0,8.46121931]
[1740112904175,4.7040493,98331.0,98330.0,8.23293931]
[1740112909081,4.7040493,98331.0,98330.0,8.32420983]
[1740112911171,4.7040493,98331.0,98330.0,3.27420983]
[1740112911371,4.7040493,98331.0,98330.0,8.32420983]
[1740112912641,4.7040493,98331.0,98330.0,8.23293931]
[1740112912843,4.70377981,98331.0,98330.0,8.23293931]
[1740112913735,4.70377981,98331.0,98330.0,8.46125931]
[1740112916347,4.58228058,98331.0,98330.0,8.46125931]
[1740112921973,4.58228058,98331.0,98330.0,8.53745931]
[1740112922468,4.44738094,98331.0,98330.0,8.53745931]
[1740112922668,3.32531494,98331.0,98330.0,8.53745931]
[1740112923437,3.32531494,98331.0,98330.0,8.50576079]
[1740112925017,3.32531494,98331.0,98330.0,8.42956079]
[1740112926673,3.32531494,98331.0,98330.0,8.46124727]
[1740112928129,3.27746494,98331.0,98330.0,8.46124727]
[1740112929292,3.05492494,98331.0,98330.0,8.46124727]
[1740112929490,3.00511494,98331.0,98330.0,8.46124727]
[1740112930487,2.99439494,98331.0,98330.0,8.46124727]
[1740112931942,2.98954944,98331.0,98330.0,8.46124727]
[1740112936619,2.02512844,98331.0,98330.0,8.46124727]
[1740112936818,1.76540944,98331.0,98330.0,8.42956079]
[1740112940380,1.39424944,98331.0,98330.0,8.42956079]
[1740112941647,1.39424944,98331.0,98330.0,3.37956079]
[1740112941846,1.36334944,98331.0,98330.0,8.42956079]
[1740112946249,2.40315944,98332.0,98331.0,0.16708585]
[1740112946444,2.40315944,98332.0,98331.0,8.06913323]
[1740112946744,2.40130956,98332.0,98331.0,8.06913323]
[1740112946943,2.40130956,98332.0,98331.0,9.56913323]
[1740112947118,2.40130956,98332.0,98331.0,9.57633323]
[1740112947512,2.40230956,98332.0,98331.0,9.57733323]
[1740112948511,2.40230956,98332.0,98331.0,9.57833323]
[1740112949808,1.23660945,98332.0,98331.0,10.07833323]
[1740112949944,1.20608934,98332.0,98331.0,10.07833323]
[1740112950321,1.17556923,98332.0,98331.0,10.07833323]
[1740112950461,1.14504912,98332.0,98331.0,10.07833323]
[1740112950886,1.11452901,98332.0,98331.0,10.07833323]
[1740112951970,2.93719901,98333.0,98332.0,0.31708485]
[1740112952329,2.93719901,98333.0,98332.0,5.46973054]
[1740112952683,2.93719901,98333.0,98332.0,6.16973054]
[1740112952896,2.93719901,98333.0,98332.0,7.66973054]
[1740112953120,2.93719901,98333.0,98332.0,7.67073054]
[1740112953275,2.93719901,98333.0,98332.0,7.67173054]
[1740112953956,2.89159901,98333.0,98332.0,7.67173054]
[1740112956428,2.88851889,98333.0,98332.0,7.67173054]
[1740112956971,2.88851889,98333.0,98332.0,7.90001054]
[1740112957189,2.88851889,98333.0,98332.0,7.92007477]
[1740112958012,3.73489041,98334.0,98333.0,0.31708285]
[1740112958172,3.73489041,98334.0,98333.0,6.16972854]
[1740112958576,3.73489041,98334.0,98333.0,7.66972854]
[1740112959313,3.73489041,98334.0,98333.0,7.67072854]
[1740112959521,3.73489041,98334.0,98333.0,7.67172854]
[1740112959660,3.73489041,98334.0,98333.0,7.67072854]
[1740112960083,2.29644795,98334.0,98333.0,7.67172854]
[1740112960992,2.29644795,98334.0,98333.0,2.62272854]
[1740112961186,2.29644795,98334.0,98333.0,7.67272854]
[1740112965804,2.29729875,98334.0,98333.0,7.67272854]
[1740112966762,2.29729875,98334.0,98333.0,7.90100854]
[1740112967640,2.29729875,98334.0,98333.0,7.92123738]
[1740112967776,2.16953723,98334.0,98333.0,7.92123738]
[1740112971701,2.16953723,98334.0,98333.0,2.87123738]
[1740112971905,2.16953723,98334.0,98333.0,7.92123738]
[1740112974932,1.97048835,98334.0,98333.0,7.92123738]
[1740112976663,1.97048835,98334.0,98333.0,7.92023738]
[1740112976957,1.97048835,98334.0,98333.0,7.91823738]
[1740112977140,1.97048835,98334.0,98333.0,7.92023738]
[1740112977659,1.97048835,98334.0,98333.0,7.91923738]
[1740112977807,1.97048835,98334.0,98333.0,7.92193878]
[1740112978521,1.97048835,98334.0,98333.0,7.92093878]
[1740112978724,1.97048835,98334.0,98333.0,7.91993878]
[1740112979144,1.97048835,98334.0,98333.0,7.92093878]
[1740112979601,1.97048835,98334.0,98333.0,7.92193878]
[1740112979815,1.97048835,98334.0,98333.0,8.42193878]
[1740112979957,1.97048835,98334.0,98333.0,8.42293878]
[1740112980337,1.97048835,98334.0,98333.0,8.42193878]
[1740112980603,1.97048835,98334.0,98333.0,8.77676526]
[1740112980745,1.97048835,98334.0,98333.0,8.39286526]
[1740112980942,1.97048835,98334.0,98333.0,8.41188903]
[1740112982035,1.97048835,98334.0,98333.0,8.39286526]
[1740112985122,1.97048835,98334.0,98333.0,8.4118893]
[1740112988810,1.97048835,98334.0,98333.0,7.38726282]
[1740112989436,1.97048835,98334.0,98333.0,6.37206282]
[1740112991932,1.97048835,98334.0,98333.0,3.39916282]
[1740112992734,1.2033,98335.0,98334.0,7.3465935]
[1740112992940,1.2033,98335.0,98334.0,14.38364088]
[1740112993430,1.2033,98335.0,98334.0,15.88364088]
[1740112994115,1.2033,98335.0,98334.0,15.88464088]
[1740112994323,1.2033,98335.0,98334.0,15.70744088]
[1740112994495,1.2033,98335.0,98334.0,15.72646492]
[1740112994701,1.2033,98335.0,98334.0,15.71536492]
[1740112995103,1.2033,98335.0,98334.0,15.60246492]
[1740112995299,1.2033,98335.0,98334.0,14.93386492]
[1740112996442,1.2033,98335.0,98334.0,14.93333077]
[1740112998124,1.2033,98335.0,98334.0,14.56073077]
[1740113001620,1.2033,98335.0,98334.0,14.58132263]
[1740113001916,1.2041507,98335.0,98334.0,14.58132263]
[1740113003950,1.2041507,98335.0,98334.0,14.58852263]
[1740113009772,1.2041507,98335.0,98334.0,15.08852263]
[1740113012383,1.2041507,98335.0,98334.0,15.31680263]
[1740113012743,1.2041507,98335.0,98334.0,14.80430263]
[1740113013579,1.2041507,98335.0,98334.0,14.80600403]
[1740113019734,1.2041507,98335.0,98334.0,12.47690403]
[1740113019986,1.2041507,98335.0,98334.0,17.52690403]
[1740113023586,1.2041507,98335.0,98334.0,15.47750234]
[1740113028876,1.2041507,98335.0,98334.0,15.47650234]
[1740113029465,1.2041507,98335.0,98334.0,15.47750234]
[1740113029845,1.2041507,98335.0,98334.0,15.47650234]
[1740113030076,1.2041507,98335.0,98334.0,15.47750234]
[1740113030703,1.2041507,98335.0,98334.0,15.47550234]
[1740113030886,1.2041507,98335.0,98334.0,15.47750234]
[1740113031598,1.2041507,98335.0,98334.0,15.47850234]
[1740113036555,1.2041507,98335.0,98334.0,15.47750234]
[1740113036925,1.2041507,98335.0,98334.0,15.47650234]
[1740113037103,1.2041507,98335.0,98334.0,15.47750234]
[1740113037487,1.2041507,98335.0,98334.0,13.60380234]
[1740113038092,1.2041507,98335.0,98334.0,13.23040234]
[1740113038817,1.2041507,98335.0,98334.0,13.22320234]
[1740113038997,1.2041507,98335.0,98334.0,9.60866149]
[1740113039196,1.2041507,98335.0,98334.0,9.93076149]
[1740113039608,1.2041507,98335.0,98334.0,9.04530234]
[1740113039786,1.2041507,98335.0,98334.0,8.06096149]
[1740113039974,1.2492507,98335.0,98334.0,8.06196149]
[1740113040168,1.2492507,98335.0,98334.0,8.06296149]
[1740113040407,1.2492507,98335.0,98334.0,8.07650234]
[1740113040607,1.2492507,98335.0,98334.0,8.07550234]
[1740113040857,1.2492507,98335.0,98334.0,8.27750234]
[1740113041011,1.2492507,98335.0,98334.0,8.27650234]
[1740113041234,1.2492507,98335.0,98334.0,9.77550234]
[1740113042768,1.2502507,98335.0,98334.0,10.48250234]
[1740113043000,1.2512507,98335.0,98334.0,10.48950234]
[1740113043411,1.2512507,98335.0,98334.0,10.28950234]
[1740113049759,1.2512507,98335.0,98334.0,9.78950234]
[1740113050741,1.2061507,98335.0,98334.0,9.78950234]
[1740113051256,1.2061507,98335.0,98334.0,9.98950234]
[1740113055861,1.2061507,98335.0,98334.0,9.76122234]
[1740113056477,1.2061507,98335.0,98334.0,9.56122234]
[1740113058806,1.2061507,98335.0,98334.0,9.76122234]
[1740113059476,1.2061507,98335.0,98334.0,9.56122234]
[1740113062583,1.2061507,98335.0,98334.0,9.76122234]
[1740113062833,1.2061507,98335.0,98334.0,9.56122234]
[1740113063560,1.2061507,98335.0,98334.0,9.76122234]
[1740113070596,1.2061507,98335.0,98334.0,9.56122234]
[1740113072603,1.2061507,98335.0,98334.0,9.59176134]
[1740113075976,1.2061507,98335.0,98334.0,9.79176134]
[1740113076419,1.2061507,98335.0,98334.0,9.59176134]
[1740113076879,1.2061507,98335.0,98334.0,9.79176134]
[1740113078694,1.2061507,98335.0,98334.0,9.59176134]
[1740113079248,1.2061507,98335.0,98334.0,8.89176134]
[1740113080548,1.2061507,98335.0,98334.0,9.09176134]
[1740113082247,1.2061507,98335.0,98334.0,9.79176134]
[1740113085517,1.2061507,98335.0,98334.0,13.91066134]
[1740113086084,1.2061507,98335.0,98334.0,14.06066134]
[1740113087270,1.2061507,98335.0,98334.0,14.06462946]
[1740113087463,0.3097877,98335.0,98334.0,14.06462946]
[1740113087639,3.58367179,98336.0,98335.0,0.29667272]
[1740113087838,3.58367179,98336.0,98335.0,7.17394489]
[1740113088585,3.58367179,98336.0,98335.0,8.67791301]
[1740113089298,3.58367179,98336.0,98335.0,8.69693705]
[1740113089540,3.58367179,98336.0,98335.0,8.69793705]
[1740113090751,3.58367179,98336.0,98335.0,8.69893705]
[1740113091590,3.58367179,98336.0,98335.0,3.64793705]
[1740113091794,3.58367179,98336.0,98335.0,8.69793705]
[1740113091975,3.58367179,98336.0,98335.0,8.69893705]
[1740113092282,3.58367179,98336.0,98335.0,8.69693705]
[1740113092417,3.58367179,98336.0,98335.0,8.69893705]
[1740113092833,3.58367179,98336.0,98335.0,8.69793705]
[1740113093364,3.58367179,98336.0,98335.0,8.69893705]
[1740113093606,3.56099498,98336.0,98335.0,8.71880782]
[1740113095249,3.56099498,98336.0,98335.0,8.71780782]
[1740113095476,3.56099498,98336.0,98335.0,8.71880782]
[1740113095684,3.56099498,98336.0,98335.0,8.71780782]
[1740113095991,3.56099498,98336.0,98335.0,8.71880782]
[1740113096184,3.56184578,98336.0,98335.0,8.71880782]
[1740113098248,3.56184578,98336.0,98335.0,9.21880782]
[1740113098851,3.56184578,98336.0,98335.0,9.21780782]
[1740113099051,3.56184578,98336.0,98335.0,9.44512782]
[1740113099259,3.56184578,98336.0,98335.0,9.44712782]
[1740113100365,3.56184578,98336.0,98335.0,9.44612782]
[1740113100898,3.56184578,98336.0,98335.0,9.44712782]
[1740113101301,3.56184578,98336.0,98335.0,9.43158697]
[1740113101667,3.56184578,98336.0,98335.0,9.43258697]
[1740113106909,3.56184578,98336.0,98335.0,4.38258697]
[1740113107108,3.56184578,98336.0,98335.0,9.43258697]
[1740113108374,3.56184578,98336.0,98335.0,9.43428857]
[1740113109167,3.56184578,98336.0,98335.0,9.43328857]
[1740113109372,3.56184578,98336.0,98335.0,9.43228857]
[1740113109614,3.56184578,98336.0,98335.0,9.43328857]
[1740113109927,3.56184578,98336.0,98335.0,9.43428857]
[1740113111178,3.56184578,98336.0,98335.0,9.4659771]
[1740113111633,3.56184578,98336.0,98335.0,9.43328857]
[1740113111834,3.56184578,98336.0,98335.0,9.43228857]
[1740113112312,3.56184578,98336.0,98335.0,9.43428857]
[1740113112446,3.56184578,98336.0,98335.0,9.43328857]
[1740113112653,3.56184578,98336.0,98335.0,9.43228857]
[1740113112863,3.56184578,98336.0,98335.0,9.43428857]
[1740113113064,3.56184578,98336.0,98335.0,9.43328857]
[1740113113764,3.56184578,98336.0,98335.0,9.43428857]
[1740113114831,3.56608578,98336.0,98335.0,9.43428857]
[1740113116917,3.56608578,98336.0,98335.0,9.43328857]
[1740113117498,3.56608578,98336.0,98335.0,4.38328857]
[1740113117698,3.56608578,98336.0,98335.0,9.43328857]